fUSD/lending_fUSD_20251206
["ID","MTS","AMOUNT","RATE_DAILY","PERIOD"]
[396591186,1765062655307,-500.0,0.00016712,2]
[396591187,1765062655316,-2498.58,0.00016712,2]
[396591188,1765062655325,-500.0,0.00016712,2]
[396591189,1765062655334,-500.0,0.00016712,2]
[396591190,1765062655343,-500.0,0.00016712,2]
[396591191,1765062655362,-1956.75,0.00016712,2]
[396591192,1765062655373,-500.0,0.00016712,2]
[396591193,1765062655382,-500.0,0.00016712,2]
[396591194,1765062655392,-500.0,0.00016712,2]
[396591195,1765062655401,-500.0,0.00016712,2]
[396591196,1765062655411,-1000.0,0.00016712,2]
[396591197,1765062655421,-500.0,0.00016712,2]
[396591198,1765062655430,-500.0,0.00016712,2]
[396591199,1765062655439,-1896.12,0.00016712,2]
[396591200,1765062655449,-509.37,0.00016712,2]
[396591201,1765062655458,-2393.88,0.00016712,2]
[396591202,1765062655468,-2157.19,0.00016712,2]
[396591203,1765062655477,-94.51711055,0.00016712,2]
[396591204,1765062655489,-1233.02197146,0.00016712,2]
[396591205,1765062655514,-150.655292,0.00016438,2]
[396591206,1765062655524,-1013.56091799,0.00016712,2]
[396591207,1765062655533,-519.47,0.00016712,2]
[396591208,1765062655543,-1715.7,0.00016712,2]
[396591209,1765062655552,-454.22891974,0.00016712,2]
[396591210,1765062655799,-150.655292,0.00016438,2]
[396591211,1765062655809,-150.655292,0.00016438,2]
[396591212,1765062655818,-16.95463496,0.00016438,2]
[396591213,1765062655829,-133.70065704,0.00016438,2]
[396591214,1765062655839,-150.655292,0.00016438,2]
[396591215,1765062655848,-630.79108026,0.00016712,2]
[396591216,1765062655858,-500.0,0.00016712,2]
[396591217,1765062655867,-928.53966926,0.00016712,2]
[396591218,1765062655943,-150.655292,0.00016438,2]
[396591219,1765062655953,-2196.95033074,0.00016712,2]
[396591220,1765062655963,-1235.63605551,0.00016712,2]
[396591221,1765062656059,-150.655292,0.00016438,2]
[396591222,1765062656069,-500.72163003,0.00016438,2]
[396591223,1765062656079,-407.54200848,0.00016438,2]
[396591224,1765062656269,-92.45799152,0.00016438,2]
[396591225,1765062656281,-1029.80815299,0.0001664,2]
[396591226,1765062656299,-956.0,0.0001664,2]
[396591227,1765062656316,-773.93202368,0.0001664,2]
[396591228,1765062656327,-1800.0,0.0001664,2]
[396591229,1765062656338,-471.28087377,0.0001664,2]
[396591230,1765062656348,-692.25394449,0.00016712,2]
[396591231,1765062656358,-500.0,0.00016712,2]
[396591232,1765062656367,-491.95245396,0.00016712,2]
[396591233,1765062656377,-500.0,0.00016712,2]
[396591234,1765062656389,-6360.78,0.00016712,2]
[396591235,1765062656398,-2180.16,0.00016712,2]
[396591236,1765062656408,-500.0,0.00016712,2]
[396591237,1765062656418,-500.0,0.00016712,2]
[396591238,1765062656428,-500.0,0.00016712,2]
[396591239,1765062656438,-500.0,0.00016712,2]
[396591240,1765062656450,-500.0,0.00016712,2]
[396591241,1765062656465,-500.0,0.00016712,2]
[396591242,1765062656484,-243.25749408,0.00016712,2]
[396591243,1765062656498,-2003.38250592,0.00016712,2]
[396591244,1765062656509,-603.88,0.00016712,2]
[396591245,1765062656518,-2541.63,0.00016712,2]
[396591246,1765062656528,-500.0,0.00016712,2]
[396591247,1765062656539,-500.0,0.00016712,2]
[396591248,1765062656550,-461.32024006,0.00016712,2]
[396591249,1765062656573,-1075.96975994,0.00016712,2]
[396591250,1765062656582,-500.0,0.00016712,2]
[396591251,1765062656591,-2411.99,0.00016712,2]
[396591252,1765062656600,-340.44024415,0.00016712,2]
[396591253,1765062656616,-159.55975585,0.00016712,2]
[396591254,1765062656626,-500.0,0.00016712,2]
[396591255,1765062656635,-178.96025115,0.00016712,2]
[396591256,1765062656646,-321.03974885,0.00016712,2]
[396591257,1765062656656,-500.0,0.00016712,2]
[396591258,1765062656667,-500.0,0.00016712,2]
[396591259,1765062656678,-500.0,0.00016712,2]
[396591260,1765062656688,-500.0,0.00016712,2]
[396591261,1765062656697,-1113.58,0.00016712,2]
[396591262,1765062656707,-602.62646353,0.00016712,2]
[396591263,1765062656716,-500.0,0.00016712,2]
[396591264,1765062656725,-500.0,0.00016712,2]
[396591265,1765062656735,-510.27,0.00016712,2]
[396591266,1765062656744,-162.48603386,0.00016712,2]
[396591268,1765063287327,159.04,0.00012107,2]
[396591287,1765063337041,355.55996647,0.000131,2]
[396591314,1765063396960,940.91533727,0.000131,2]
[396591337,1765063667741,2337.8078595,0.00013,15]
[396591347,1765063742221,1000.0,0.00012999,3]
[396591368,1765063832075,-166.66,0.00014595,2]
[396591369,1765063832084,-166.66,0.00014903,2]
[396591370,1765063832094,-1000.0,0.00015183,2]
[396591371,1765063832103,-166.66,0.0001521,2]
[396591372,1765063832112,-150.0,0.00015288,2]
[396591373,1765063832122,-150.0,0.00015288,2]
[396591374,1765063832131,-150.0,0.00015288,2]
[396591375,1765063832140,-150.0,0.00015288,2]
[396591376,1765063832150,-150.0,0.00015288,2]
[396591377,1765063832159,-864.81794371,0.000153,2]
[396591378,1765063832170,-62.27313477,0.000153,2]
[396591379,1765063832179,-504.91658739,0.000154,2]
[396591380,1765063832188,-198.33887896,0.00015505,2]
[396591381,1765063832263,-51.66112104,0.00015505,2]
[396591383,1765063832273,-166.66,0.00015517,2]
[396591384,1765063832283,-128.66357826,0.00015551,2]
[396591385,1765063832344,-71.33642174,0.00015551,2]
[396591386,1765063832355,-300.0,0.00015581,2]
[396591387,1765063832364,-1200.0,0.00015581,2]
[396591388,1765063832373,-300.0,0.00015581,2]
[396591389,1765063832382,-300.0,0.00015581,2]
[396591390,1765063832393,-341.37486615,0.00015582,2]
[396591391,1765063832566,-341.17199996,0.00015582,2]
[396591392,1765063832576,-331.713,0.00015582,2]
[396591393,1765063832596,-3553.89013389,0.00015582,2]
[396591394,1765063832605,-1414.38,0.00015593,2]
[396591395,1765063832614,-162.82,0.00015754,2]
[396591396,1765063832623,-205.24,0.00015758,2]
[396591397,1765063832631,-255.04,0.00015763,2]
[396591398,1765063832641,-203.48,0.00015779,2]
[396591399,1765063832650,-418.47,0.000158,2]
[396591400,1765063832659,-166.66,0.00015824,2]
[396591401,1765063832669,-196.0,0.00015958,2]
[396591402,1765063832679,-196.0,0.00015961,2]
[396591403,1765063832688,-196.0,0.0001597,2]
[396591404,1765063832697,-21718.37587697,0.00016,4]
[396591405,1765063832707,-157.77933206,0.00016009,2]
[396591406,1765063832716,-586.0943727,0.00016009,2]
[396591407,1765063832726,-550.0,0.0001601,2]
[396591408,1765063832735,-196.0,0.0001601,2]
[396591409,1765063832745,-250.0,0.00016027,2]
[396591410,1765063832754,-151.0,0.00016096,2]
[396591411,1765063832763,-185.64818891,0.00016098,2]
[396591412,1765063832773,-518.42704563,0.00016098,2]
[396591413,1765063832782,-269754.17838806,0.00016099,2]
[396591414,1765063832794,-69711.09578531,0.00016099,2]
[396591415,1765063832805,-77064.8009981,0.00016099,2]
[396591416,1765063832816,-18578.72700298,0.00016099,2]
[396591417,1765063832827,-741.71719028,0.00016099,2]
[396591418,1765063832838,-3507.10652302,0.00016099,2]
[396591427,1765063838097,-500.0,0.00015999,2]
[396591428,1765063838109,-500.0,0.00015999,2]
[396591429,1765063838119,-502.05585245,0.00015999,2]
[396591430,1765063838130,-500.0,0.00015999,2]
[396591431,1765063838140,-196.55943663,0.00015999,2]
[396591432,1765063838151,-500.0,0.00015999,2]
[396591433,1765063838162,-500.0,0.00015999,2]
[396591434,1765063838172,-500.0,0.00015999,2]
[396591435,1765063838183,-500.0,0.00015999,2]
[396591436,1765063838192,-500.0,0.00015999,2]
[396591437,1765063838203,-500.0,0.00015999,2]
[396591438,1765063838213,-500.0,0.00015999,2]
[396591439,1765063838224,-500.0,0.00015999,2]
[396591440,1765063838239,-500.0,0.00015999,2]
[396591441,1765063838249,-500.0,0.00015999,2]
[396591442,1765063838259,-500.0,0.00015999,2]
[396591443,1765063838270,-500.0,0.00015999,2]
[396591444,1765063838281,-637.68185932,0.00015999,2]
[396591445,1765063838291,-500.0,0.00015999,2]
[396591446,1765063838302,-500.0,0.00015999,2]
[396591447,1765063838312,-296656.85490506,0.00016099,2]
[396591448,1765063838325,-23985.51920719,0.00016099,2]
[396591449,1765063838336,-1215.38,0.0001611,2]
[396591450,1765063838349,-2886.52627735,0.00016112,2]
[396591451,1765063838403,-2382.94542265,0.00016112,2]
[396591452,1765063838413,-9391.65968415,0.00016112,2]
[396591453,1765063838443,-563.94852852,0.00016112,2]
[396591607,1765063840234,-890.453791,0.00016112,2]
[396591624,1765063840387,-25334.61909633,0.00016112,2]
[396591626,1765063840397,-1103.7214,0.00016112,2]
[396591628,1765063840407,-4847.38416214,0.00016112,2]
[396591629,1765063840417,-3102.12287462,0.00016112,2]
[396591632,1765063840430,-617.40005154,0.00016126,2]
[396591634,1765063840440,-311.1,0.00016126,2]
[396591636,1765063840450,-151.0,0.00016126,2]
[396591638,1765063840459,-1900.0,0.00016126,2]
[396591640,1765063840468,-825.50162876,0.00016126,2]
[396591642,1765063840478,-642.94,0.00016126,2]
[396591644,1765063840487,-287.61899177,0.00016126,2]
[396591646,1765063840496,-151.0,0.00016126,2]
[396591648,1765063840506,-166.66,0.00016132,2]
[396591650,1765063840519,-4847.38416211,0.000162,2]
[396591652,1765063840528,-3102.12287457,0.000162,2]
[396591654,1765063840539,-2000.0,0.000162,5]
[396591656,1765063840547,-200.0,0.00016202,2]
[396591658,1765063840556,-600.0,0.00016212,2]
[396591660,1765063840565,-1000.0,0.00016235,3]
[396591662,1765063840574,-196.0,0.00016286,2]
[396591664,1765063840583,-4847.38416211,0.00016287,2]
[396591666,1765063840592,-3102.12287457,0.00016287,2]
[396591668,1765063840601,-150.0,0.0001632,2]
[396591670,1765063840610,-500.0,0.0001632,2]
[396591672,1765063840619,-500.0,0.0001632,2]
[396591674,1765063840628,-198.05136594,0.00016338,2]
[396591676,1765063840637,-396.86467761,0.00016338,2]
[396591678,1765063840647,-10000.0,0.00016338,2]
[396591680,1765063840656,-500.0,0.00016373,2]
[396591682,1765063840665,-500.0,0.00016373,2]
[396591684,1765063840675,-500.0,0.00016373,2]
[396591686,1765063840684,-500.0,0.00016373,2]
[396591688,1765063840693,-500.0,0.00016373,2]
[396591690,1765063840704,-428.53646628,0.00016373,2]
[396591692,1765063840713,-150.0,0.00016373,2]
[396591694,1765063840724,-150.0,0.00016373,2]
[396591696,1765063840733,-150.0,0.00016373,2]
[396591698,1765063840743,-150.0,0.00016373,2]
[396591700,1765063840752,-150.0,0.00016373,2]
[396591702,1765063840762,-500.0,0.00016373,2]
[396591704,1765063840771,-150.0,0.00016373,2]
[396591706,1765063840780,-154.16730665,0.00016373,2]
[396591709,1765063840790,-500.0,0.00016373,2]
[396591711,1765063840800,-4847.38416211,0.00016375,2]
[396591713,1765063840809,-3102.12287457,0.00016375,2]
[396591715,1765063840819,-157.77933201,0.00016384,2]
[396591717,1765063840829,-270.0,0.00016428,2]
[396591719,1765063840838,-206.40043606,0.00016428,2]
[396591721,1765063840847,-239.819487,0.00016438,2]
[396591722,1765063840856,-173.112999,0.00016438,2]
[396591725,1765063840867,-454.720612,0.00016438,2]
[396591727,1765063840876,-5920.788987,0.00016438,2]
[396591729,1765063840886,-162.35582,0.00016438,2]
[396591730,1765063840897,-500.0,0.00016438,2]
[396591733,1765063840909,-500.0,0.00016438,2]
[396591735,1765063840920,-500.0,0.00016438,2]
[396591737,1765063840929,-500.0,0.00016438,2]
[396591738,1765063840939,-500.0,0.00016438,2]
[396591740,1765063840948,-500.0,0.00016438,2]
[396591743,1765063840957,-2022.86,0.00016438,2]
[396591744,1765063840967,-500.0,0.00016438,2]
[396591747,1765063840976,-500.0,0.00016438,2]
[396591748,1765063840986,-500.0,0.00016438,2]
[396591751,1765063840995,-501.76523011,0.00016438,2]
[396591752,1765063841005,-1688.26,0.00016438,2]
[396591755,1765063841014,-500.0,0.00016438,2]
[396591756,1765063841024,-500.0,0.00016438,2]
[396591759,1765063841035,-500.0,0.00016438,2]
[396591761,1765063841045,-500.0,0.00016438,2]
[396591763,1765063841054,-500.0,0.00016438,2]
[396591765,1765063841063,-502.16102508,0.00016438,2]
[396591766,1765063841072,-500.0,0.00016438,2]
[396591768,1765063841081,-500.0,0.00016438,2]
[396591770,1765063841090,-500.0,0.00016438,2]
[396591772,1765063841099,-500.0,0.00016438,2]
[396591774,1765063841108,-500.0,0.00016438,2]
[396591776,1765063841118,-500.89386772,0.00016438,2]
[396591778,1765063841128,-500.0,0.00016438,2]
[396591780,1765063841137,-1849.83,0.00016438,2]
[396591782,1765063841147,-503.66679427,0.00016438,2]
[396591784,1765063841156,-500.0,0.00016438,2]
[396591786,1765063841166,-500.0,0.00016438,2]
[396591789,1765063841175,-500.0,0.00016438,2]
[396591790,1765063841184,-500.0,0.00016438,2]
[396591792,1765063841194,-2036.27,0.00016438,2]
[396591795,1765063841203,-500.0,0.00016438,2]
[396591796,1765063841212,-500.0,0.00016438,2]
[396591798,1765063841222,-500.0,0.00016438,2]
[396591801,1765063841231,-500.0,0.00016438,2]
[396591802,1765063841240,-500.0,0.00016438,2]
[396591805,1765063841250,-500.0,0.00016438,2]
[396591807,1765063841260,-500.0,0.00016438,2]
[396591809,1765063841274,-500.0,0.00016438,2]
[396591811,1765063841283,-500.0,0.00016438,2]
[396591813,1765063841294,-500.0,0.00016438,2]
[396591815,1765063841303,-1838.59,0.00016438,2]
[396591817,1765063841313,-500.0,0.00016438,2]
[396591819,1765063841322,-500.0,0.00016438,2]
[396591821,1765063841331,-500.0,0.00016438,2]
[396591823,1765063841340,-500.0,0.00016438,2]
[396591825,1765063841353,-500.0,0.00016438,2]
[396591827,1765063841363,-500.0,0.00016438,2]
[396591829,1765063841372,-500.0,0.00016438,2]
[396591831,1765063841381,-500.0,0.00016438,2]
[396591833,1765063841393,-500.0,0.00016438,2]
[396591835,1765063841402,-253.91111771,0.00016438,2]
[396591837,1765063841411,-500.0,0.00016438,2]
[396591839,1765063841421,-500.0,0.00016438,2]
[396591842,1765063841432,-500.0,0.00016438,2]
[396591844,1765063841443,-500.0,0.00016438,2]
[396591846,1765063841453,-500.0,0.00016438,2]
[396591848,1765063841463,-500.0,0.00016438,2]
[396591849,1765063841474,-542.67,0.00016438,2]
[396591852,1765063841483,-500.0,0.00016438,2]
[396591854,1765063841493,-500.0,0.00016438,2]
[396591856,1765063841502,-500.0,0.00016438,2]
[396591858,1765063841511,-500.0,0.00016438,2]
[396591860,1765063841520,-500.0,0.00016438,2]
[396591862,1765063841529,-500.0,0.00016438,2]
[396591864,1765063841539,-500.0,0.00016438,2]
[396591866,1765063841548,-500.0,0.00016438,2]
[396591868,1765063841557,-500.0,0.00016438,2]
[396591870,1765063841567,-500.0,0.00016438,2]
[396591872,1765063841576,-500.0,0.00016438,2]
[396591874,1765063841586,-1394.02,0.00016438,2]
[396591876,1765063841595,-500.0,0.00016438,2]
[396591878,1765063841604,-500.0,0.00016438,2]
[396591880,1765063841613,-500.0,0.00016438,2]
[396591882,1765063841622,-500.0,0.00016438,2]
[396591884,1765063841632,-500.0,0.00016438,2]
[396591886,1765063841641,-500.0,0.00016438,2]
[396591888,1765063841651,-500.0,0.00016438,2]
[396591890,1765063841659,-500.0,0.00016438,2]
[396591892,1765063841669,-500.0,0.00016438,2]
[396591894,1765063841678,-500.0,0.00016438,2]
[396591896,1765063841687,-500.0,0.00016438,2]
[396591898,1765063841696,-500.0,0.00016438,2]
[396591900,1765063841706,-500.0,0.00016438,2]
[396591902,1765063841715,-2130.12,0.00016438,2]
[396591904,1765063841724,-500.0,0.00016438,2]
[396591906,1765063841733,-500.0,0.00016438,2]
[396591908,1765063841742,-500.0,0.00016438,2]
[396591910,1765063841752,-500.0,0.00016438,2]
[396591912,1765063841761,-500.0,0.00016438,2]
[396591914,1765063841770,-500.0,0.00016438,2]
[396591916,1765063841779,-500.0,0.00016438,2]
[396591918,1765063841788,-503.25869569,0.00016438,2]
[396591919,1765063841798,-500.0,0.00016438,2]
[396591922,1765063841808,-500.0,0.00016438,2]
[396591924,1765063841819,-500.0,0.00016438,2]
[396591926,1765063841830,-500.0,0.00016438,2]
[396591928,1765063841840,-500.0,0.00016438,2]
[396591929,1765063841851,-500.0,0.00016438,2]
[396591932,1765063841860,-500.0,0.00016438,2]
[396591934,1765063841871,-500.0,0.00016438,2]
[396591935,1765063841880,-500.0,0.00016438,2]
[396591938,1765063841889,-500.0,0.00016438,2]
[396591939,1765063841899,-500.0,0.00016438,2]
[396591941,1765063841908,-1744.02,0.00016438,2]
[396591943,1765063841917,-500.0,0.00016438,2]
[396591946,1765063841926,-500.0,0.00016438,2]
[396591948,1765063841936,-500.0,0.00016438,2]
[396591950,1765063841944,-1962.56,0.00016438,2]
[396591951,1765063841953,-500.0,0.00016438,2]
[396591954,1765063841963,-500.0,0.00016438,2]
[396591955,1765063841973,-500.0,0.00016438,2]
[396591958,1765063841983,-500.0,0.00016438,2]
[396591959,1765063841993,-500.0,0.00016438,2]
[396591961,1765063842002,-500.0,0.00016438,2]
[396591963,1765063842012,-500.0,0.00016438,2]
[396591966,1765063842023,-750.82,0.00016438,2]
[396591967,1765063842032,-310.55394461,0.00016438,2]
[396591969,1765063842041,-500.0,0.00016438,2]
[396591972,1765063842052,-500.0,0.00016438,2]
[396591974,1765063842062,-500.0,0.00016438,2]
[396591976,1765063842071,-500.0,0.00016438,2]
[396591978,1765063842082,-501.77313898,0.00016438,2]
[396591980,1765063842091,-500.0,0.00016438,2]
[396591982,1765063842101,-500.0,0.00016438,2]
[396591984,1765063842112,-500.0,0.00016438,2]
[396591986,1765063842122,-501.78994951,0.00016438,2]
[396591988,1765063842131,-500.0,0.00016438,2]
[396591990,1765063842141,-500.0,0.00016438,2]
[396591992,1765063842154,-500.0,0.00016438,2]
[396591994,1765063842163,-500.0,0.00016438,2]
[396591996,1765063842172,-500.0,0.00016438,2]
[396591998,1765063842181,-500.0,0.00016438,2]
[396592000,1765063842191,-597.70160526,0.00016438,2]
[396592002,1765063842200,-500.0,0.00016438,2]
[396592004,1765063842210,-500.0,0.00016438,2]
[396592006,1765063842220,-500.0,0.00016438,2]
[396592008,1765063842230,-500.0,0.00016438,2]
[396592010,1765063842239,-500.0,0.00016438,2]
[396592012,1765063842248,-500.0,0.00016438,2]
[396592014,1765063842257,-500.0,0.00016438,2]
[396592016,1765063842267,-502.37633463,0.00016438,2]
[396592018,1765063842277,-500.0,0.00016438,2]
[396592020,1765063842287,-500.0,0.00016438,2]
[396592022,1765063842297,-500.0,0.00016438,2]
[396592024,1765063842306,-500.0,0.00016438,2]
[396592026,1765063842315,-500.0,0.00016438,2]
[396592028,1765063842324,-500.0,0.00016438,2]
[396592030,1765063842333,-500.0,0.00016438,2]
[396592032,1765063842342,-500.0,0.00016438,2]
[396592034,1765063842356,-500.0,0.00016438,2]
[396592037,1765063842367,-500.0,0.00016438,2]
[396592038,1765063842376,-500.0,0.00016438,2]
[396592040,1765063842385,-500.0,0.00016438,2]
[396592043,1765063842395,-500.0,0.00016438,2]
[396592045,1765063842404,-500.0,0.00016438,2]
[396592046,1765063842413,-500.0,0.00016438,2]
[396592048,1765063842423,-500.0,0.00016438,2]
[396592050,1765063842432,-500.0,0.00016438,2]
[396592052,1765063842442,-500.62982502,0.00016438,2]
[396592054,1765063842453,-1398.61,0.00016438,2]
[396592056,1765063842462,-500.0,0.00016438,2]
[396592058,1765063842471,-500.0,0.00016438,2]
[396592060,1765063842480,-500.0,0.00016438,2]
[396592062,1765063842491,-500.0,0.00016438,2]
[396592065,1765063842501,-500.0,0.00016438,2]
[396592066,1765063842510,-500.0,0.00016438,2]
[396592067,1765063842520,-500.0,0.00016438,2]
[396592069,1765063842530,-500.0,0.00016438,2]
[396592071,1765063842539,-500.0,0.00016438,2]
[396592073,1765063842548,-500.0,0.00016438,2]
[396592075,1765063842557,-500.0,0.00016438,2]
[396592077,1765063842568,-2190.78,0.00016438,2]
[396592079,1765063842577,-500.0,0.00016438,2]
[396592081,1765063842586,-500.0,0.00016438,2]
[396592083,1765063842595,-500.0,0.00016438,2]
[396592085,1765063842604,-500.0,0.00016438,2]
[396592087,1765063842613,-602.41,0.00016438,2]
[396592089,1765063842624,-500.0,0.00016438,2]
[396592092,1765063842638,-500.0,0.00016438,2]
[396592094,1765063842651,-500.0,0.00016438,2]
[396592096,1765063842663,-500.0,0.00016438,2]
[396592099,1765063842674,-500.0,0.00016438,2]
[396592101,1765063842685,-500.0,0.00016438,2]
[396592102,1765063842697,-651.73,0.00016438,2]
[396592103,1765063842709,-711.54,0.00016438,2]
[396592104,1765063842722,-500.0,0.00016438,2]
[396592105,1765063842734,-500.0,0.00016438,2]
[396592106,1765063842746,-500.0,0.00016438,2]
[396592108,1765063842757,-500.0,0.00016438,2]
[396592109,1765063842769,-500.0,0.00016438,2]
[396592111,1765063842781,-500.0,0.00016438,2]
[396592113,1765063842792,-500.0,0.00016438,2]
[396592116,1765063842802,-500.0,0.00016438,2]
[396592119,1765063842812,-500.0,0.00016438,2]
[396592122,1765063842823,-500.0,0.00016438,2]
[396592124,1765063842835,-500.0,0.00016438,2]
[396592126,1765063842847,-500.0,0.00016438,2]
[396592127,1765063842859,-500.0,0.00016438,2]
[396592128,1765063842871,-607.12,0.00016438,2]
[396592129,1765063842884,-500.0,0.00016438,2]
[396592130,1765063842896,-500.0,0.00016438,2]
[396592131,1765063842908,-500.0,0.00016438,2]
[396592133,1765063842921,-500.0,0.00016438,2]
[396592134,1765063842931,-500.0,0.00016438,2]
[396592135,1765063842945,-500.0,0.00016438,2]
[396592136,1765063842957,-500.0,0.00016438,2]
[396592137,1765063842968,-500.0,0.00016438,2]
[396592138,1765063842980,-550.36855639,0.00016438,2]
[396592139,1765063842992,-500.0,0.00016438,2]
[396592142,1765063843004,-500.0,0.00016438,2]
[396592144,1765063843016,-500.0,0.00016438,2]
[396592145,1765063843028,-500.0,0.00016438,2]
[396592146,1765063843041,-500.0,0.00016438,2]
[396592147,1765063843054,-500.0,0.00016438,2]
[396592148,1765063843066,-500.0,0.00016438,2]
[396592149,1765063843078,-1981.29,0.00016438,2]
[396592150,1765063843089,-500.0,0.00016438,2]
[396592151,1765063843101,-500.0,0.00016438,2]
[396592153,1765063843111,-500.0,0.00016438,2]
[396592154,1765063843123,-500.0,0.00016438,2]
[396592155,1765063843135,-500.0,0.00016438,2]
[396592156,1765063843149,-501.30650321,0.00016438,2]
[396592157,1765063843162,-500.0,0.00016438,2]
[396592158,1765063843172,-500.0,0.00016438,2]
[396592159,1765063843182,-500.0,0.00016438,2]
[396592160,1765063843192,-580.13,0.00016438,2]
[396592161,1765063843203,-500.95774745,0.00016438,2]
[396592162,1765063843214,-500.0,0.00016438,2]
[396592163,1765063843227,-500.0,0.00016438,2]
[396592164,1765063843239,-518.37,0.00016438,2]
[396592165,1765063843250,-500.0,0.00016438,2]
[396592166,1765063843260,-500.0,0.00016438,2]
[396592167,1765063843271,-500.0,0.00016438,2]
[396592168,1765063843281,-628.08,0.00016438,2]
[396592169,1765063843291,-1219.61,0.00016438,2]
[396592170,1765063843301,-500.0,0.00016438,2]
[396592171,1765063843311,-500.0,0.00016438,2]
[396592172,1765063843322,-500.0,0.00016438,2]
[396592173,1765063843333,-406.2390744,0.00016438,2]
[396592174,1765063843343,-500.0,0.00016438,2]
[396592175,1765063843358,-500.0,0.00016438,2]
[396592176,1765063843369,-500.0,0.00016438,2]
[396592177,1765063843380,-500.0,0.00016438,2]
[396592178,1765063843391,-687.76,0.00016438,2]
[396592179,1765063843402,-500.0,0.00016438,2]
[396592180,1765063843419,-500.0,0.00016438,2]
[396592181,1765063843431,-633.87498501,0.00016438,2]
[396592182,1765063843442,-500.0,0.00016438,2]
[396592183,1765063843453,-500.0,0.00016438,2]
[396592184,1765063843464,-1811.29,0.00016438,2]
[396592185,1765063843474,-500.0,0.00016438,2]
[396592186,1765063843485,-532.7880038,0.00016438,2]
[396592187,1765063843495,-500.0,0.00016438,2]
[396592188,1765063843506,-2336.73,0.00016438,2]
[396592189,1765063843517,-500.0,0.00016438,2]
[396592190,1765063843529,-500.0,0.00016438,2]
[396592191,1765063843547,-500.0,0.00016438,2]
[396592192,1765063843563,-555.89,0.00016438,2]
[396592193,1765063843575,-500.0,0.00016438,2]
[396592194,1765063843588,-782.27,0.00016438,2]
[396592195,1765063843600,-179.20359033,0.00016438,2]
[396592196,1765063843615,-500.0,0.00016438,2]
[396592197,1765063843628,-177.65790015,0.00016438,2]
[396592198,1765063843640,-1538.8,0.00016438,2]
[396592199,1765063843653,-500.0,0.00016438,2]
[396592200,1765063843665,-500.0,0.00016438,2]
[396592201,1765063843676,-500.0,0.00016438,2]
[396592202,1765063843688,-500.0,0.00016438,2]
[396592203,1765063843700,-500.0,0.00016438,2]
[396592204,1765063843712,-500.0,0.00016438,2]
[396592205,1765063843725,-500.0,0.00016438,2]
[396592206,1765063843737,-500.0,0.00016438,2]
[396592207,1765063843748,-500.0,0.00016438,2]
[396592208,1765063843761,-500.0,0.00016438,2]
[396592209,1765063843774,-500.0,0.00016438,2]
[396592210,1765063843785,-500.0,0.00016438,2]
[396592211,1765063843796,-500.0,0.00016438,2]
[396592212,1765063843808,-500.0,0.00016438,2]
[396592213,1765063843819,-500.0,0.00016438,2]
[396592214,1765063843832,-500.0,0.00016438,2]
[396592215,1765063843844,-500.0,0.00016438,2]